Workbook

Sheet 给、排水
A1: 2023年“P”项目装饰装修工程清单报价表
A2: 序号 | B2: 项目名称 | C2: 项目特征描述 | D2: 计量 单位 | E2: 工程量 | F2: 金额（元）
F3: 全费用单价限价 | G3: 合价 | H3: 班组所报单价 | I3: 合价 | J3: 备注
A5: 装修工程
A6: 1 | B6: 不上人屋面保温层（1#、3#管理房） | C6: 1.浅色涂料保护层（丙烯酸系反射涂料） 2.10mm厚低强度等级砂浆隔离层 3.4.0mm厚SBS改性沥青防水卷材第二道 4.4.0mm厚SBS改性沥青防水卷材（遇墙上返250mm）第一道 5.20mm厚1:3水泥砂浆保护层 6.挤塑聚苯乙烯泡沫塑料(厚度、做法详节能专篇)(B1级) 7.最薄30mm厚页岩陶粒混凝土（ρ=1300）2%找坡层 8.20mm厚1:3水泥砂浆找平层 9.2mm厚水泥基渗透结晶防水涂料 10.防水附加层、加强层、洞口填塞、搭接层、防水层收头投标人自行考虑综合进入报价，不再另计，做法详施工图。 11.本项目所有砂浆均为成品砂浆，干拌砂浆或成品砂浆投标人自行考虑。 | D6: m2 | E6: =178.84+178.84 -> 357.68 | F6: 400 | G6: =F6*E6 -> 143072
A7: 2 | B7: 种植屋面（5#展馆） | C7: 1.聚酯无纺土工布250g/m²过滤层 2.20mm厚网状塑料排（蓄）水板 3.聚酯无纺土工布400g/m²保护层 4.4.0mm厚SBS改性沥青（耐根穿刺型）防水卷材 5.4.0mm厚SBS改性沥青防水卷材,遇墙上返250mm 6.20mm厚1:3水泥砂浆找平层 7.最薄30mm厚页岩陶粒混凝土（ρ=1100）2%找坡层 8.挤塑聚苯乙烯泡沫塑料(厚度、做法详节能专篇)(B1级) 9.20mm厚1:3水泥砂浆找平层 10.2mm厚水泥基渗透结晶防水涂料 11.防水附加层、加强层、洞口填塞、搭接层、防水层收头投标人自行考虑综合进入报价，不再另计，做法详施工图。 12.本项目所有砂浆均为成品砂浆，干拌砂浆或成品砂浆投标人自行考虑。 | D7: m2 | E7: 495.61 | F7: 420 | G7: 208156.2
A8: 3 | B8: 屋面种植土回填 | C8: 1.5#展馆屋面种植土回填 2.厚度：300mm厚 3.回填高度、方式：综合考虑，所需要的机械及措施费已含在综合单价内不在单独计取。 4.具体做法:详设计图并满足相关验收规范要求 | D8: m3 | E8: =495.61*0.3 -> 148.683 | F8: 65 | G8: 9664.395
A9: 4 | B9: 不上人屋面保温层（异形廊架） | C9: 1.浅色涂料保护层（丙烯酸系反射涂料） 2.10mm厚低强度等级砂浆隔离层 3.4.0mm厚SBS改性沥青防水卷材 4.4.0mm厚SBS改性沥青防水卷材（遇墙上返250mm） 5.20mm厚1:3水泥砂浆找平层 6.最薄30mm厚页岩陶粒混凝土（ρ=1300）2%找坡层 7.2mm厚水泥基渗透结晶防水涂料 8.防水附加层、加强层、洞口填塞、搭接层、防水层收头投标人自行考虑综合进入报价，不再另计，做法详施工图。 9.本项目所有砂浆均为成品砂浆，干拌砂浆或成品砂浆投标人自行考虑。 | D9: m2 | E9: 922.11 | F9: 320 | G9: 295075.2
A10: 5 | B10: 外墙涂料（1#、3#、5#展馆） | C10: 1.墙体（基层清理干净，1：3水泥砂浆填填补平整，洒水润湿） 2.10mm界面砂浆 3.15mm厚聚合物水泥砂浆防水层一道，1.2mm厚JS水泥基防水涂料一道 4.水泥发泡板Ⅰ型(厚度、做法详节能专篇)(A级) 5.5mm厚专用聚合物砂浆分两次抹，中间压入一层耐碱玻纤网格布 6.4mm厚抗裂砂浆增强保护层分两遍完成，第一遍抹好后，压入耐碱玻纤网格布，再抹第二遍。 7.刮2mm厚抗裂柔性耐水腻子 8.涂刷2mm厚封闭底漆 9.喷涂2mm厚真石漆 10.涂刷2mm厚罩光清漆 11.涂料外墙实施前应做小样，测试墙体和屋面保温复合后的燃烧性满足要求，并送消防备案。具体做法:详设计图并满足相关验收规范要求。 12.本项目所有砂浆均为成品砂浆，干拌砂浆或成品砂浆投标人自行考虑。 | D10: m2 | E10: =122.36+122.36+126.9 -> 371.62 | F10: 220 | G10: 81756.4
A11: 6 | B11: 外墙涂料（异形廊架） | C11: 1.墙体（基层清理干净，1：3水泥砂浆填填补平整，洒水润湿） 2.刷界面处理剂 3.8mm厚1:3水泥砂浆打底 4.8mm厚水泥砂浆找平，清扫、填补裂缝麻坑。 5.刷建筑胶一道 6.刮2mm厚抗裂柔性耐水腻子 7.涂刷2mm厚封闭底漆 8.喷涂2mm厚真石漆 9.涂刷2mm厚罩光清漆 10.涂料外墙实施前应做小样，测试墙体和屋面保温复合后的燃烧性满足要求，并送消防备案。具体做法:详设计图并满足相关验收规范要求。 11.本项目所有砂浆均为成品砂浆，干拌砂浆或成品砂浆投标人自行考虑。 | D11: m2 | E11: 663.41 | F11: 120 | G11: 79609.2
A12: 7 | B12: 外墙砖 | C12: 1.墙体（基层清理干净，1：3水泥砂浆填填补平整，洒水润湿） 2.10mm界面砂浆 3.15mm厚聚合物水泥砂浆防水层一道，1.2mm厚JS水泥基防水涂料一道 4.水泥发泡板Ⅰ型(厚度、做法详节能专篇)(A级) 5.3mm厚外加剂专业砂浆底面刮糙，或专业界面剂甩毛 6.9mm厚1:3水泥砂浆中层刮平扫毛或划出纹道 7.刷素水泥砂浆一道 8.6mm厚1:2.5水泥砂浆（掺建筑胶） 9.贴8～10厚外墙面砖（青砖色号：1706 N5.75），在砖粘贴面上随贴随涂刷一遍混凝土界面剂，增强粘接力 10.1:1水泥砂浆勾缝 11.具体做法:详设计图并满足相关验收规范要求。 12.本项目所有砂浆均为成品砂浆，干拌砂浆或成品砂浆投标人自行考虑。 | D12: m2 | E12: =92.11+92.11 -> 184.22 | F12: 270 | G12: 49739.4
A13: 8 | B13: 3mm铝单板外墙、氟碳漆饰面 | C13: 1.颜色：白色氟碳漆饰面，色号13217.5GY9/1 2.厚度：3mm 3.配套龙骨：详幕墙专项设计图 4.辅材：已综合考虑不再单独计算费用 4.固定方式综合考虑 6.包含但不限于辅材、预埋铁件等均已综合考虑、不再另行计算 7.二次转运及多次转运、上下车等由投标人自行考虑 8.具体做法:详设计需满足设计图并满足相关验收规范要求 | D13: m2 | E13: 573.6 | F13: 650 | G13: 372840
A14: 9 | B14: 浅灰色铝合金格栅 | C14: 1.颜色：浅灰色铝合金格栅，色号1706 N5.75 2.厚度：铝合金矩管40*40*2 矩管中心间距120均布（弧形综合考虑） 3.辅材：已综合考虑不再单独计算费用 4.固定方式综合考虑 5.包含但不限于辅材、预埋铁件等均已综合考虑、不再另行计算 6.二次转运及多次转运、上下车等由投标人自行考虑 7.具体做法:详设计需满足设计图并满足相关验收规范要求 | D14: m2 | E14: =61.37+61.37+473.75 -> 596.49 | F14: 580 | G14: 345964.2
A15: 10 | B15: 玻璃幕墙 | C15: 1.骨架材料种类、规格、中距：铝合金，详幕墙专项设计图 2.洞口尺寸:详设计图纸 3.玻璃品种、厚度：8low-e+12A+8双钢化中空low-e玻璃（弧形综合考虑） 4.玻璃百叶：综合考虑、增加的工料、多点锁、风撑及相关五金配件等已综合考虑 5.面层固定方式：详见设计图纸并满足规范要求 6.嵌缝、塞口材料种类：详见设计图 7.开窗：幕墙上开窗增加工料、多点锁、风撑及相关五金配件等已综合考虑 8.包含但不限于辅材、铝单板明框盖板及压板、预埋铁件等均已综合考虑、不再另行计算 9.二次转运及多次转运、上下车等由投标人自行考虑 10.幕墙避雷系统详设计图 11.具体做法:详设计图并满足相关验收规范要求 | D15: m2 | E15: =129.29*2+552.11 -> 810.69 | F15: 1200 | G15: 972828
A16: 11 | B16: 铝合金地弹门 | C16: 1.地弹门：详幕墙专项设计，地弹簧：包含地弹簧、地弹簧做法现场与招标人和设计共同确定 2.门套尺寸及做法:详设计图纸 3.玻璃品种、厚度：8low-e+12A+8双钢化中空low-e玻璃 4.固定方式：详见设计图纸并满足规范要求 5.嵌缝、塞口材料种类：详见设计图 6.拉手：不锈钢拉手、符合设计及规范要求 7.龙骨：详设计图纸 7.包含但不限于辅材、预埋铁件等均已综合考虑、不再另行计算 8.二次转运及多次转运、上下车等由投标人自行考虑 9.避雷系统详设计图 10.具体做法:详设计图并满足相关验收规范要求 | D16: m2 | E16: =16.82*2+48.48 -> 82.12 | F16: 1200 | G16: 98544
A17: 12 | B17: 无机涂料（内墙面、柱面、梁面） | C17: 1.墙体基层处理 2.7mm厚1：3水泥砂浆打底扫毛 3.6mm厚1：3水泥砂浆垫层找平 4.5mm厚1:2.5水泥砂浆罩面磨光 5.分遍满刮腻子2～3mm厚，找平，磨光 6.喷（刷）无机涂料(一层底漆，两层面漆，抗菌耐水易洁型)；颜色按装修做法表 7.具体做法:详设计图并满足相关验收规范要求 8.本项目所有砂浆均为成品砂浆，干拌砂浆或成品砂浆投标人自行考虑。 | D17: m2 | E17: =140.41*2+129.96+715.66 -> 1126.44 | F17: 45 | G17: 50689.8
A18: 13 | B18: 瓷砖墙面（内墙） | C18: 1.墙体基层处理 2.10mm厚1：3水泥砂浆打底扫毛，分两次抹 3.8mm厚1:2水泥砂浆连接层（加建筑胶适量） 4.6～8mm厚300*600瓷砖，瓷砖贴至吊顶处 5.瓷砖勾缝剂擦缝 6.具体做法:详设计图并满足相关验收规范要求 7.本项目所有砂浆均为成品砂浆，干拌砂浆或成品砂浆投标人自行考虑。 | D18: m2 | E18: =177.94*2+240.8 -> 596.68 | F18: 120 | G18: 71601.6
A19: 14 | B19: 1.5厚聚合物水泥JS(Ⅱ)防水涂料防水层 | C19: 1.防水膜品种 ：JS-II复合防水涂料（包工包料） 2.位置：男厕、女厕、无障碍卫生间、清洁间、盥洗室，所有区域翻墙高度均为1.8m 3.涂膜厚度、遍数：1.5mm ,2遍 4.增强材料种类：符合设计要求 5.防水附加层、加强层、洞口填塞、搭接层、防水层收头投标人自行考虑综合进入报价，不再另计 | D19: m2 | E19: =100*2+200 -> 400 | F19: 58 | G19: 23200
A20: 15 | B20: 防滑地砖铺贴（小卖部、茶室、展厅、异形廊架等） | C20: 1.6～8mm厚600*600防滑玻化砖地砖，配水泥浆擦缝 2.20mm厚1:2干硬水泥砂浆粘合层，上洒1～2厚干水泥并洒清水适量 3.20mm厚1:3水泥砂浆掺5％防水剂防潮层找平层 4.水泥浆水灰比0.4～0.5结合层一道 5.具体做法:详设计图并满足相关验收规范要求 6.本项目所有砂浆均为成品砂浆，干拌砂浆或成品砂浆投标人自行考虑。 | D20: m2 | E20: =125*2+423.26+872.64 -> 1545.9 | F20: 115 | G20: 177778.5
A21: 16 | B21: 防滑地砖铺贴（卫生间、盥洗室） | C21: 1.6～8mm厚300*300防滑玻化砖地砖，配水泥浆擦缝 2.20mm厚1:2干硬水泥砂浆粘合层，上洒1～2厚干水泥并洒清水适量 3.20mm厚1:3水泥砂浆找平层 4.水泥浆水灰比0.4～0.5结合层一道 5.泡沫混凝土回填层 6.具体做法:详设计图并满足相关验收规范要求 7.本项目所有砂浆均为成品砂浆，干拌砂浆或成品砂浆投标人自行考虑。 | D21: m2 | E21: =53.35*2+53.77 -> 160.47 | F21: 115 | G21: 18454.05
A22: 17 | B22: 室外花岗石地面 | C22: 1.花岗石面层（石材甲供），配水泥浆擦缝 2.20mm厚1:2干硬水泥砂浆粘合层，上洒1～2厚干水泥并洒清水适量 3.1:3水泥砂浆掺5％防水剂防潮层找平层，最薄处20mm厚（兼找坡层） 4.水泥浆水灰比0.4～0.5结合层一道 5.具体做法:详设计图并满足相关验收规范要求 6.本项目所有砂浆均为成品砂浆，干拌砂浆或成品砂浆投标人自行考虑。 | D22: m2 | E22: =58.97*2+441.5 -> 559.44 | F22: 70 | G22: 39160.8
A23: 18 | B23: 室外平台花岗石面层 | C23: 1.花岗石面层（石材甲供），配水泥浆擦缝 2.20mm厚1:2干硬水泥砂浆粘合层，上洒1～2厚干水泥并洒清水适量 3.1:3水泥砂浆掺5％防水剂防潮层找平层，最薄处20mm厚（兼找坡层） 4.水泥浆水灰比0.4～0.5结合层一道 5.具体做法:详设计图并满足相关验收规范要求 6.本项目所有砂浆均为成品砂浆，干拌砂浆或成品砂浆投标人自行考虑。 | D23: m2 | E23: =31.32*2 -> 62.64 | F23: 70 | G23: 4384.8
A24: 19 | B24: 花岗石台阶 | C24: 1.花岗石面层（石材甲供），配水泥浆擦缝 2.20mm厚1:2干硬水泥砂浆粘合层，上洒1～2厚干水泥并洒清水适量 3.1:3水泥砂浆掺5％防水剂防潮层找平层，最薄处20mm厚（兼找坡层） 4.水泥浆水灰比0.4～0.5结合层一道 5.具体做法:详设计图并满足相关验收规范要求 6.本项目所有砂浆均为成品砂浆，干拌砂浆或成品砂浆投标人自行考虑。 | D24: m2 | E24: =10.2*2+40.41 -> 60.81 | F24: 80 | G24: 4864.8
A25: 20 | B25: 花岗石无障碍坡道 | C25: 1.花岗石面层（石材甲供），配水泥浆擦缝 2.20mm厚1:2干硬水泥砂浆粘合层，上洒1～2厚干水泥并洒清水适量 3.1:3水泥砂浆掺5％防水剂防潮层找平层，最薄处20mm厚（兼找坡层） 4.水泥浆水灰比0.4～0.5结合层一道 5.具体做法:详设计图并满足相关验收规范要求 6.本项目所有砂浆均为成品砂浆，干拌砂浆或成品砂浆投标人自行考虑。 | D25: m2 | E25: =7.19*2+9.37 -> 23.75 | F25: 70 | G25: 1662.5
A26: 21 | B26: 防静电架空活动室楼地面 | C26: 1.150至250架空600*600*40成品防静电活动地板(金属面层)，厚度40mm，防静电值2.5x10^4~1.0x10^9Q之间 2.20mm厚1:3水泥砂浆找平层 3.水泥浆水灰0.4~0.5结合层一道 4.20mm厚1:3水泥砂浆掺5％防水剂防潮层找平层 5.具体做法:详设计图并满足相关验收规范要求 6.本项目所有砂浆均为成品砂浆，干拌砂浆或成品砂浆投标人自行考虑。 | D26: m2 | E26: 50 | F26: 300 | G26: 15000
A27: 22 | B27: 混凝土基层、垫层 | C27: 1.部位：混凝土基层、垫层（混凝土甲供） 2.混凝土强度等级：商品砼，混凝土泵送方式投标人自行考虑，包含在综合单价内，不再另计；模板费用综合在投标报价内，不再单独另行计算； 3.其余做法要求：满足设计及现行施工技术、质量验收规范要求 | D27: m3 | E27: =50*2 -> 100 | F27: 60 | G27: 6000
A28: 23 | B28: 无机涂料天棚 | C28: 1.钢筋混凝土楼面板、基层清理、捡平 2.刷水泥浆一道（加建筑胶适量） 3.3～5mm厚防水聚合物水泥抹灰砂浆分层抹平 4.喷（刷）无机涂料(一层底漆，两层面漆，抗菌耐水易洁型) 5.具体做法:详设计图并满足相关验收规范要求 6.本项目所有砂浆均为成品砂浆，干拌砂浆或成品砂浆投标人自行考虑。 | D28: m2 | E28: =179.52*2+91.45+1433.01 -> 1883.5 | F28: 40 | G28: 75340
A29: 24 | B29: 铝合金方板顶棚 | C29: 1.钢筋混凝土板内预留φ6吊环，双向吊点，中距900-1200 2.3～5mm厚防水聚合物水泥抹灰砂浆分层抹平 3.φ6钢筋吊杆或M6全牙吊杆与结构中的预埋件焊接或后置紧固件连接，双向中距≤1200mm 4.U型轻钢承载龙骨C38X12X1.0mm，中距≤1200，用吊件与钢筋吊杆联结后找平 5.T型轻钢主龙骨24X32X0.27X0.27mm，间距等于板材宽度，用挂件与承载龙骨固定 6.T型轻钢次龙骨24X28X0.27X0.27mm，间距等于板材宽度，与主龙骨插接 7.300X300X0.8铝合金方板 8.具体做法:详设计图并满足相关验收规范要求 | D29: m2 | E29: =50.36*2+410.23 -> 510.95 | F29: 165 | G29: 84306.75
A30: 25 | B30: 塑钢蹲位卫生间隔断 | C30: 参见西南18J517第45页1b节点 | D30: 套 | E30: 20 | F30: 800 | G30: 16000
A31: 26 | B31: 灰色塑钢小便池隔板隔断 | C31: 参见西南18J517第45页1b节点,隔板宽改为350 | D31: 套 | E31: 6 | F31: 150 | G31: 900
A32: 27 | B32: 地砖踢脚线 | C32: 1.结合层厚度、砂浆配合比 :4厚纯水泥浆粘结层(水泥浆内掺20%白乳胶)，找平层综合考虑 2.面层材料品种、规格、颜色 ： 6厚地砖踢脚线（包工包料）（满足东鹏、冠珠、新中源的品牌品质要求） 3.嵌缝材料种类 :白水泥擦缝 4.做法：满足设计及现行施工技术、质量验收规范要求 5.本项目所有砂浆均为成品砂浆，干拌砂浆或成品砂浆投标人自行考虑。 | D32: m2 | E32: 10 | F32: 120 | G32: 1200
A33: 28 | B33: 门带门套 | C33: 1.门类型:夹板木门、满足美心、群升、王力品牌品质要求 2.开启方式:综合 3.颜色：综合 4.所有外门窗均采用带有RISN节能标示的门窗。 4.其他:五金配件、紧固件、密封材料、发泡剂、埋件、连接件、油漆等包括在综合单价中，门窗安装应满足其强度、热工、声学及安全性等技术要求 5.其他:符合设计规范及施工验收规范要求 | D33: m2 | E33: 30 | F33: 512 | G33: 15360
A34: 29 | B34: 无障碍坡道栏杆 | C34: 1.不锈钢材质：201拉丝不锈钢 2. 所有外露的上下金属管均应先作除锈处理,再刷防锈漆二道，并按各专业规定的颜色罩调和漆二道。其它外露铁件均先作除锈处理，再刷防锈漆二道，调和漆两道； 3.国标12J926 2/22，1/46 做法05 | D34: m | E34: 30 | F34: 185 | G34: 5550
A35: 30 | B35: 无障碍座便器安全抓杆 | C35: 参见12J926-J10/3 | D35: m | E35: 5 | F35: 80 | G35: 400
A36: 31 | B36: 无障碍座便器靠墙安全抓杆 | C36: 参见12J926-J10/3 | D36: m | E36: 5 | F36: 80 | G36: 400
A37: 安装工程
A38: 32 | B38: AL-Z(建筑配电总箱） | C38: 1.名称：AL-Z(建筑配电总箱） 2.型号、规格 ：详设计，含箱内电气元件 3.安装方式：详设计 | D38: 台 | E38: 3 | F38: 1500 | G38: =F38*E38 -> 4500
A39: 33 | B39: AL-1（照明配电箱） | C39: 1.名称：AL-1（照明配电箱） 2.型号、规格 ：详设计，含箱内电气元件 3.安装方式：详设计 | D39: 台 | E39: 3 | F39: 900 | G39: 2700
A40: 34 | B40: AL-wjs(卫生间照明配电箱） | C40: 1.名称：AL-wjs(卫生间照明配电箱） 2.型号规格：详设计，含箱内电气元件 3.安装方式：详设计 | D40: 台 | E40: 4 | F40: 500 | G40: 2000
A41: 35 | B41: 应急照明箱（LAE箱） | C41: 1.名称：应急照明箱（LAE箱） 2.型号规格：详设计，含箱内电气元件 3.安装方式：详设计 | D41: 台 | E41: 3 | F41: 300 | G41: 900
A42: 36 | B42: 线管 PVC50 | C42: 1.名称：电气配管 2.材质：PVC 3.规格：DN50 4.配置形式：综合考虑 | D42: m | E42: =4.6*2+20.5 -> 29.7 | F42: 20 | G42: 594
A43: 37 | B43: 配管 PVC25 | C43: 1.名称：电气配管 2.材质：PVC 3.规格：DN25 4.配置形式：综合考虑 | D43: m | E43: =12.1*2+35.9 -> 60.1 | F43: 8 | G43: 480.8
A44: 38 | B44: 配管 PVC20 | C44: 1.名称：电气配管 2.材质：PVC 3.规格：DN20 4.配置形式：综合考虑 | D44: m | E44: =259.1*2+374.65 -> 892.85 | F44: 6 | G44: 5357.1
A45: 39 | B45: 电线配管开线槽（宽度综合） | C45: 1.名称 ：电线配管开线槽 2.材质 ：综合考虑 3.规格 ：综合考虑 | D45: m | E45: 600 | F45: 15 | G45: 9000
A46: 40 | B46: 配线（WDZ-YJV5*16） | C46: 1.名称：电气配线 2.配线形式：综合考虑 3.型号：WDZ-YJV 4.规格：5*16mm2 5.材质：铜芯 6.配线部位：综合考虑 7.配线线制：综合 | D46: m | E46: =11.22*2+27.51 -> 49.95 | F46: 70 | G46: 3496.5
A47: 41 | B47: 配线（WDZ-YJV3*6） | C47: 1.名称：电气配线 2.配线形式：综合考虑 3.型号：WDZ-YJV 4.规格：3*6mm2 5.材质：铜芯 6.配线部位：综合考虑 7.配线线制：综合 | D47: m | E47: =18.9*2+43.3 -> 81.1 | F47: 20 | G47: 1622
A48: 42 | B48: 配线(BBTRZ-3*4) | C48: 1.名称：电气配线 2.配线形式：综合考虑 3.型号：BBTRZ 4.规格：3*4mm2 5.材质：铜芯 6.配线部位：综合考虑 7.配线线制：综合 | D48: m | E48: =9.63*2+9.63 -> 28.89 | F48: 10 | G48: 288.9
A49: 43 | B49: 配线（照明WZD-BYJ3*2.5) | C49: 1.名称：电气配线 2.配线形式：综合考虑 3.型号：WZD-BYJ 4.规格：3*2.5mm2 5.材质：铜芯 6.配线部位：综合考虑 7.配线线制：综合 | D49: m | E49: =154.92*2+793.6 -> 1103.44 | F49: 8 | G49: 8827.52
A50: 44 | B50: 配线（插座WZD-BYJ3*4) | C50: 1.名称：电气配线 2.配线形式：综合考虑 3.型号：WZD-BYJ 4.规格：3*4mm2 5.材质：铜芯 6.配线部位：综合考虑 7.配线线制：综合 | D50: m | E50: =111.78*2+165 -> 388.56 | F50: 10 | G50: 3885.6
A51: 45 | B51: 配线（NH-RV5 2*2.5) | C51: 1.名称：电气配线 2.配线形式：综合考虑 3.型号：NH-RV5 4.规格：2*2.5mm2 5.材质：铜芯 6.配线部位：综合考虑 7.配线线制：综合 | D51: m | E51: =67.25*2+250 -> 384.5 | F51: 6 | G51: 2307
A52: 46 | B52: 分线接线箱 | C52: 1.名称 ：分线接线箱 2.材质 ：详设计 3.规格 ：详设计 4.安装形式：详设计 | D52: 个 | E52: 3 | F52: 5 | G52: 15
A53: 47 | B53: 弱电预留管道（含引线） | C53: 1.名称：电气配管 2.材质：PVC 3.规格：DN20 4.配置形式：综合考虑 | D53: m | E53: =52.03*2+52.03 -> 156.09 | F53: 8 | G53: 1248.72
A54: 48 | B54: 接线盒（开关、插座、灯具等） | C54: 1.名称 ：接线盒 2.材质 ：详设计 3.规格 ：详设计 4.安装形式：详设计 | D54: 个 | E54: =(29+21)*3 -> 150 | F54: 5 | G54: 750
A55: 49 | B55: 双管LED等-2*36W | C55: 1.名称：双管LED等-2*36W 2.型号、规格：按设计及业主选型 3.安装形式：详设计 4.含灯具安装所需光源、金属软管等 | D55: 套 | E55: =15*2+28 -> 58 | F55: 150 | G55: 8700
A56: 50 | B56: 吸顶灯 | C56: 1.名称：600*600LED节能吸顶灯 AC220V-1X70W 2.型号、规格：按设计及业主选型 3.安装形式：详设计 4.含灯具安装所需光源、金属软管等 | D56: 套 | E56: 3 | F56: 100 | G56: 300
A57: 51 | B57: 卫生间（吸顶式排气扇-照明一体） | C57: 1.名称：卫生间（吸顶式排气扇-照明一体） 2.型号、规格：按设计及业主选型 3.安装形式：详设计 4.含灯具安装所需光源、金属软管等 | D57: 套 | E57: =5*2+3 -> 13 | F57: 800 | G57: 10400
A58: 52 | B58: 消防疏散照明灯（吸顶式） | C58: 1.名称：消防疏散照明灯（吸顶式） 2.型号、规格：按设计及业主选型 3.安装形式：详设计 4.含灯具安装所需光源、金属软管等 | D58: 套 | E58: =2*2+9 -> 13 | F58: 70 | G58: 910
A59: 53 | B59: 消防疏散照明灯（壁挂式） | C59: 1.名称：消防疏散照明灯（壁挂式） 2.型号、规格：按设计及业主选型 3.安装形式：详设计 4.含灯具安装所需光源、金属软管等 | D59: 套 | E59: =3*2+6 -> 12 | F59: 70 | G59: 840
A60: 54 | B60: 单向疏散标志灯 | C60: 1.名称：单向疏散标志灯 2.型号、规格：按设计及业主选型 3.安装形式：详设计 4.含灯具安装所需光源、金属软管等 | D60: 套 | E60: =1*2+4 -> 6 | F60: 50 | G60: 300
A61: 55 | B61: 疏散出口大型标志灯 | C61: 1.名称：疏散出口大型标志灯 2.型号、规格：按设计及业主选型 3.安装形式：详设计 4.含灯具安装所需光源、金属软管等 | D61: 套 | E61: =1*2+9 -> 11 | F61: 50 | G61: 550
A62: 56 | B62: 照明开关（暗装3联以下） | C62: 1.名称：暗装3联以下 2.材质：详设计 3.规格：按设计及业主选型 4.安装方式：H=1.3m | D62: 个 | E62: =4*2+6 -> 14 | F62: 20 | G62: 280
A63: 57 | B63: 照明开关（暗装6联以下） | C63: 1.名称：暗装6联以下 2.材质：详设计 3.规格：按设计及业主选型 4.安装方式：H=1.3m | D63: 个 | E63: =1*2+2 -> 4 | F63: 20 | G63: 80
A64: 58 | B64: 插座（五孔250V/10A) | C64: 1.名称：五孔250V/10A 2.材质：详设计 3.规格：按设计及业主选型 4.安装方式：H=1.3m | D64: 个 | E64: =11*2+11 -> 33 | F64: 30 | G64: 990
A65: 59 | B65: 插座(空调三孔250V/16A) | C65: 1.名称：空调三孔250V/16A 2.材质规格：按设计及业主选型 3.安装方式：详设计 4.满足设计及施工验收规范要求 | D65: 个 | E65: =1*2+2 -> 4 | F65: 30 | G65: 120
A66: 60 | B66: 插座(柜式空调三孔250V/20A) | C66: 1.名称：安全型单相防水五孔插座 2.材质规格：按设计及业主选型 3.安装方式：详设计 4.满足设计及施工验收规范要求 | D66: 个 | E66: =4*2+4 -> 12 | F66: 30 | G66: 360
A67: 61 | B67: 屋面排水管UPVC Φ110 | C67: 1.安装部位：室内综合 2.输送介质：排水系统 3.材质、规格：塑料管 DN100 4.连接形式：详设计 5.包括管件、管卡及吊托支架制作安装以及套管敷设、管洞防水堵漏等工作内容 6.其他：详设计 | D67: m | E67: =22*2+63.6 -> 107.6 | F67: 32 | G67: 3443.2
A68: 62 | B68: 塑料管 UPVC Φ50 | C68: 1.安装部位：室内综合 2.输送介质：排水系统 3.材质、规格：PVC塑料管 DN50 4.连接形式：详设计 5.包括管件、管卡及吊托支架制作安装以及套管敷设、管洞防水堵漏等工作内容 6.其他：详设计 | D68: m | E68: =18.3*2+6.3 -> 42.9 | F68: 15 | G68: 643.5
A69: 63 | B69: 塑料管（UPVC-Φ200) | C69: 1.安装部位：室内外综合 2.输送介质：排水系统 3.材质、规格：UPVC-Φ160 4.连接形式：详设计 5.包括管件、管卡及吊托支架制作安装以及套管敷设、管洞防水堵漏等工作内容 6.其他：详设计 | D69: m | E69: =6.7*2 -> 13.4 | F69: 55 | G69: 737
A70: 64 | B70: 塑料管（UPVC-Φ160) | C70: 1.安装部位：室内外综合 2.输送介质：排水系统 3.材质、规格：UPVC-Φ160 4.连接形式：详设计 5.包括管件、管卡及吊托支架制作安装以及套管敷设、管洞防水堵漏等工作内容 6.其他：详设计 | D70: m | E70: =6.7*2+6.7 -> 20.1 | F70: 45 | G70: 904.5
A71: 65 | B71: 塑料管（UPVC-Φ110) | C71: 1.安装部位：室内外综合 2.输送介质：排水系统 3.材质、规格：UPVC-Φ110 4.连接形式：详设计 5.包括管件、管卡及吊托支架制作安装以及套管敷设、管洞防水堵漏等工作内容 6.其他：详设计 | D71: m | E71: =34.9*2+34.9 -> 104.7 | F71: 32 | G71: 3350.4
A72: 66 | B72: 塑料管（UPVC-Φ75) | C72: 1.安装部位：室内外综合 2.输送介质：排水系统 3.材质、规格：UPVC-Φ75 4.连接形式：详设计 5.包括管件、管卡及吊托支架制作安装以及套管敷设、管洞防水堵漏等工作内容 6.其他：详设计 | D72: m | E72: =12*2+12 -> 36 | F72: 18 | G72: 648
A73: 67 | B73: 冷水管 PPR-DN15 | C73: 1.安装部位：室内综合 2.输送介质：给水系统 3.材质、规格：PP-R塑料冷水管 DN15 4.连接形式：热熔连接 5.包括管件、管卡及吊托支架制作安装以及套管敷设、管洞防水堵漏等工作内容 6.其他：详设计 | D73: m | E73: =17.83*2+16 -> 51.66 | F73: 18 | G73: 929.88
A74: 68 | B74: 冷水管 PPR-DN20 | C74: 1.安装部位：室内综合 2.输送介质：给水系统 3.材质、规格：PP-R塑料冷水管 DN20 4.连接形式：热熔连接 5.包括管件、管卡及吊托支架制作安装以及套管敷设、管洞防水堵漏等工作内容 6.其他：详设计 | D74: m | E74: =20*2+20 -> 60 | F74: 19 | G74: 1140
A75: 69 | B75: 冷水管 PPR-DN25 | C75: 1.安装部位：室内综合 2.输送介质：给水系统 3.材质、规格：PP-R塑料冷水管 DN25 4.连接形式：热熔连接 5.包括管件、管卡及吊托支架制作安装以及套管敷设、管洞防水堵漏等工作内容 6.其他：详设计 | D75: m | E75: =57.2*2+25.9 -> 140.3 | F75: 21 | G75: 2946.3
A76: 70 | B76: 冷水管 PPR-DN32 | C76: 1.安装部位：室内综合 2.输送介质：给水系统 3.材质、规格：PP-R塑料冷水管 DN32 4.连接形式：热熔连接 5.包括管件、管卡及吊托支架制作安装以及套管敷设、管洞防水堵漏等工作内容 6.其他：详设计 | D76: m | E76: =6.93*2+22.8 -> 36.66 | F76: 22 | G76: 806.52
A77: 71 | B77: 冷水管 PPR-DN40 | C77: 1.安装部位：室内综合 2.输送介质：给水系统 3.材质、规格：PP-R塑料冷水管 DN40 4.连接形式：热熔连接 5.包括管件、管卡及吊托支架制作安装以及套管敷设、管洞防水堵漏等工作内容 6.其他：详设计 | D77: m | E77: =4.6*2 -> 9.2 | F77: 33 | G77: 303.6
A78: 72 | B78: 冷水管 PPR-DN50 | C78: 1.安装部位：室内综合 2.输送介质：给水系统 3.材质、规格：PP-R塑料冷水管 DN50 4.连接形式：热熔连接 5.包括管件、管卡及吊托支架制作安装以及套管敷设、管洞防水堵漏等工作内容 6.其他：详设计 | D78: m | E78: =10.35*3 -> 31.05 | F78: 38 | G78: 1179.9
A79: 73 | B79: 给水开线槽（宽度综合） | C79: 1.名称 ：开线槽 2.材质 ：综合考虑 3.规格 ：综合考虑 | D79: m | E79: =120*2 -> 240 | F79: 15 | G79: 3600
A80: 74 | B80: 倒流防止阀 DN50 | C80: 1.类型：倒流防止阀 DN50铜芯 2.材质：详设计 3.规格、压力等级：DN50 4.连接形式：综合考虑 | D80: 个 | E80: 3 | F80: 80 | G80: 240
A81: 75 | B81: 地漏 DN50 | C81: 1.名称：不锈钢地漏 2.安装方式、材质：详西南18J517-37-4、5 3.型号、规格：DN50 | D81: 个 | E81: =3*2 -> 6 | F81: 30 | G81: 180
A82: 76 | B82: 地漏 DN100 | C82: 1.名称：不锈钢地漏 2.安装方式、材质：详西南18J517-37-4、5 3.型号、规格：DN100 | D82: 个 | E82: =3*2 -> 6 | F82: 60 | G82: 360
A83: 77 | B83: 成品拖布池(材料甲购） | C83: 1.名称：成品拖布池（材料甲供） 2.详西南18J517-53-1、2 | D83: 个 | E83: 3 | F83: 35 | G83: 105
A84: 78 | B84: 座便器（儿童用）(材料甲购） | C84: 1.材质、规格、类型：甲供 2.组装形式：整体安装 3.满足设计及施工验收规范要求 | D84: 套 | E84: 3 | F84: 70 | G84: 210
A85: 79 | B85: 座便器（残障人士专用）(材料甲购） | C85: 1.材质、规格、类型：甲供 2.组装形式：整体安装 3.满足设计及施工验收规范要求 | D85: 套 | E85: 3 | F85: 70 | G85: 210
A86: 80 | B86: 座便器(材料甲购） | C86: 1.材质、规格、类型：甲供 2.组装形式：整体安装 3.满足设计及施工验收规范要求 | D86: 套 | E86: 3 | F86: 70 | G86: 210
A87: 81 | B87: 蹲便器(材料甲购） | C87: 1.材质、规格、类型：甲供 2.组装形式：整体安装 3.满足设计及施工验收规范要求 | D87: 套 | E87: =10*2+7 -> 27 | F87: 95 | G87: 2565
A88: 82 | B88: 小便器(材料甲购） | C88: 1.材质、规格、类型：甲供 2.组装形式：整体安装 3.满足设计及施工验收规范要求 | D88: 套 | E88: =3*2+2 -> 8 | F88: 95 | G88: 760
A89: 83 | B89: 成品独立式洗手盆(材料甲购） | C89: 1.材质、规格、类型：甲供 2.组装形式：整体安装 3.满足设计及施工验收规范要求 | D89: 个 | E89: =2*2+1 -> 5 | F89: 80 | G89: 400
A90: 84 | B90: 台面洗手盆安装(材料甲购）（含儿童、残障人士卫生间洗手盆） | C90: 1.材质、规格、类型：甲供 2.组装形式：整体安装 3.满足设计及施工验收规范要求 | D90: 个 | E90: =4*2+7 -> 15 | F90: 80 | G90: 1200
A91: 85 | B91: 水表（含表前阀）DN50(材料甲购） | C91: 1.安装部位（室内外）：综合考虑 2.型号、规格：DN50 3.连接形式：详设计 | D91: 个 | E91: 3 | F91: 100 | G91: 300
A92: 86 | B92: 大理石台面洗手台（包工包料，含儿童、残卫） | C92: 1.基层;40*40*3镀锌角钢固定+15厚木工板 2.面层：大理石台面，宽600mm(投影面积） 3.其他：含石材开孔，详设计 | D92: m2 | E92: =2.8*0.6*2+1.2*0.6*2+3.1*0.6+1.2*0.6+2.2*0.6 -> 8.7 | F92: 550 | G92: 4785
A93: 87 | B93: 镜面 | C93: 做法参西南18J517第38页1节点,镜面高1000,宽度同洗手台。 | D93: m2 | E93: 5 | F93: 200 | G93: 1000
A94: 88 | B94: 灯具 | C94: 1.名称：安装方式综合考虑（灯具甲供） 2.型号、规格：按设计及业主选型 3.安装形式：详设计 4.含灯具安装所需光源、金属软管等 | D94: 套 | E94: 70 | F94: 25 | G94: 1750
A95: 89 | B95: 外脚手架 | C95: 1.脚手架高度：脚手架形式综合考虑。 2.脚手架类型：钢管脚手架 ，斜道、上料平台、安全网等投标人综合考虑，不再另行计算。 3.脚手架材料：钢管、脚手板、安全网、水平防护、立面防护网的材质、工艺等符合相关安全及施工验收规范要求 4.材料场内运输、转运费用已综合考虑在单价中 5.工程量计算：按建筑物外围垂直水平投影面积计算。 | D95: m2 | E95: =E12+E13+E14+E15+E16 -> 2247.12 | F95: 30 | G95: 67413.6
A96: 合 计 | G96: =SUM(G6:G95) -> 3443627.135
A97: 注： 1.工程量计算规则：除项目特征单独说明外，均按2020年《四川省建设工程工程量清单计价定额》相关规定执行。 2.投标人根据施工图、施工工艺、工序及国家现行规范、自行踏勘现场后综合考虑进行报价，结算时单价不作调整; 3.全费用综合单价包含人工费、所有材料费（含辅材和周转材料费）、机械设备费、工具器具费、临时设施及措施费、大型机械进出场及场内转运费、下车费、吊装费、规费、管理费、配合费、安全文明施工费、以及各种风险费、保险费、施工过程中办理的各种手续费、降水费、排水费、各种检测费、超高费、派生费、室内综合脚手架费用、利润、税费等完成该工作所需的全部费用，结算时无论涨跌、工程量增减或其它任何风险因素，均不作调整。 4.现场安全环保文明施工管理要求：（1）由公司统一发放印有“兴绿园林”字样和LOGO的安全帽和反光背心，班组按实名制领取，使用完后交回项目部，否则按采购费用扣款，其余参照合同附件中安全环保管理协议执行。（2）现场雾炮机由甲方提供，投标单位需安排人员管理使用，人工费、油费及管理费用综合考虑到投标报价中，不单独计取。（3）防尘网由甲方提供，投标单位安排人员进行覆盖、回收、现场转移等，人工费综合考虑到投标报价中，不单独计取。 5.该综合单价已包括垃圾外运费用，承包人自行综合考虑。 6.施工中用电由投标人采用发电机发电，所用临时配电箱、用电线路、开关箱、机具等所有材料、设备及安装费用含在综合单价中。 7.甲方提供施工用水接头位置，投标人自行考虑进行接管或河道抽水使用，费用包含在报价内。 8.甲供材料下车费用和场内转运费用由投标人综合考虑，包含在报价内。 9.投标人对于甲供到场材料具有保管义务，遗失或损坏，应照价赔偿。 10.本次采用全费用单价报价形式，最高限价为3443627.14元，施工单位所报价高于最高限价的为无效报价，采购人不予接受。同时在工程量清单中公布最高费用单价限价，施工单位的全费用单价限价，施工单位的全费用单价也不得超过最高全费用单价限价，否则，采购人将予以拒绝。 11.最终结算时，以经审计单位核定的实际完成工程量及有效的竣工资料进行计算，全费用单价按中选的全费用单价进行计价。 12. 开具的发票为增值税专票（税率为9%）。 13.本项目施工所需的主要材料的最低品质标准要求如下： (1)成品复合门满足美心、群升、王力品牌品质要求； (2)铝合金门窗满足圣保罗、坚美门窗、中旺铝业的品牌品质要求； (3)地砖满足东鹏、冠珠、新中源的品牌品质要求； (4)乳胶漆满足立邦、多乐士、三棵树的品牌品质要求； (5)开关插座满足西门子、飞雕、正泰、德力西的品牌品质要求； (6)电线电缆满足塔牌电缆、熊猫电缆、长城电缆的品牌品质要求； (7)灯具满足三雄极光、欧普、德力西的品牌品质要求； (8)LED光源满足欧普、飞利浦、雷士的品牌品质要求； (9)消防报警系统设备满足海湾、利达、松江的品牌品质要求； (10)监控系统满足浙江大华、海康威视、天地伟业的品牌品质要求； (11)洁具、卫具满足九牧、箭牌、帝王的品牌品质要求； (12)防水卷材满足雨虹、科顺、大禹的品牌品质要求。
